bitfinex/quotes_BTCUSD_20240911
["timestamp","ask_amount","ask_price","bid_price","bid_amount"]
[1726030064329,0.001817,56468.0,56467.0,2.30507824]
[1726030064545,0.001817,56468.0,56467.0,2.48967824]
[1726030065861,0.000817,56468.0,56467.0,2.48067824]
[1726030066059,0.000817,56468.0,56467.0,2.46767824]
[1726030066299,0.001817,56468.0,56467.0,2.48167824]
[1726030066509,0.001817,56468.0,56467.0,2.49567824]
[1726030067148,0.001817,56468.0,56467.0,2.71424203]
[1726030067355,0.0032734,56469.0,56468.0,0.2746]
[1726030067565,0.0032734,56469.0,56468.0,5.86304818]
[1726030067767,0.0032734,56469.0,56468.0,5.21570818]
[1726030067998,0.0032734,56469.0,56468.0,3.65313418]
[1726030068202,0.0032734,56469.0,56468.0,3.58691318]
[1726030068888,0.0032734,56469.0,56468.0,3.32813947]
[1726030069088,0.0032734,56469.0,56468.0,2.23539447]
[1726030069319,0.0032734,56469.0,56468.0,1.66752747]
[1726030069718,0.0032734,56469.0,56468.0,1.69552747]
[1726030070310,0.0032734,56469.0,56468.0,1.68152747]
[1726030070538,0.0032734,56469.0,56468.0,1.66752747]
[1726030070710,0.0032734,56469.0,56468.0,1.68152747]
[1726030070929,0.0032734,56469.0,56468.0,3.19552747]
[1726030071327,0.0032734,56469.0,56468.0,3.19752747]
[1726030072132,0.0032734,56469.0,56468.0,3.18352747]
[1726030072748,0.0032734,56469.0,56468.0,3.19752747]
[1726030077356,0.0032734,56469.0,56468.0,2.56505947]
[1726030077564,0.0032734,56469.0,56468.0,4.37152547]
[1726030077792,0.00028806,56469.0,56468.0,3.72603525]
[1726030078022,0.00028806,56469.0,56468.0,4.06269668]
[1726030078241,0.00028806,56469.0,56468.0,4.05069668]
[1726030078679,0.00028806,56469.0,56468.0,4.06469668]
[1726030078930,0.18378806,56469.0,56468.0,0.3813474]
[1726030079156,0.18378806,56469.0,56468.0,0.10041722]
[1726030079413,0.28539705,56469.0,56468.0,0.014]
[1726030079626,0.28539705,56469.0,56451.0,0.1322085]
[1726030079627,0.19922824,56469.0,56444.0,0.05451856]
[1726030079851,0.19922824,56469.0,56449.0,0.776]
[1726030079852,0.5614,56463.0,56449.0,0.776]
[1726030080072,0.5614,56461.0,56449.0,0.776]
[1726030080292,0.5614,56459.0,56449.0,0.776]
[1726030080531,0.5614,56457.0,56449.0,0.776]
[1726030080757,0.17594018,56456.0,56449.0,0.776]
[1726030081025,0.3779,56454.0,56449.0,0.776]
[1726030081274,0.55384018,56454.0,56449.0,0.776]
[1726030081909,0.55384018,56454.0,56453.0,0.002634]
[1726030082121,0.55384018,56454.0,56453.0,0.001634]
[1726030082555,0.55784018,56454.0,56453.0,0.001634]
[1726030083437,0.56484018,56454.0,56453.0,0.001634]
[1726030084970,0.3889,56454.0,56453.0,0.001634]
[1726030086093,0.56484018,56454.0,56453.0,0.001634]
[1726030086310,2.29041396,56454.0,56453.0,0.001634]
[1726030087459,2.23517396,56454.0,56453.0,0.001634]
[1726030087664,2.23317396,56454.0,56453.0,0.001634]
[1726030088729,2.23317396,56454.0,56444.0,0.001634]
[1726030088730,0.21223378,56445.0,56444.0,0.001634]
[1726030088947,0.95280432,56445.0,56444.0,0.001634]
[1726030089194,0.97580432,56445.0,56444.0,0.001634]
[1726030089420,1.07708475,56445.0,56444.0,0.001634]
[1726030089649,0.97580432,56445.0,56444.0,0.001634]
[1726030089864,1.00780432,56445.0,56444.0,0.001634]
[1726030090074,1.02180432,56445.0,56444.0,0.001634]
[1726030090325,1.05180432,56445.0,56444.0,0.001634]
[1726030091689,1.06580432,56445.0,56444.0,0.002634]
[1726030091917,1.05180432,56445.0,56444.0,0.002634]
[1726030092138,1.05180432,56445.0,56444.0,0.001634]
[1726030092361,1.15698475,56445.0,56444.0,0.001634]
[1726030092572,1.17098475,56445.0,56444.0,0.002634]
[1726030092792,2.44358475,56445.0,56444.0,0.002634]
[1726030093016,2.05974018,56445.0,56444.0,0.002634]
[1726030093252,2.03674018,56445.0,56444.0,0.002634]
[1726030094650,2.03674018,56445.0,56430.0,0.0024564]
[1726030094651,0.032,56432.0,56430.0,0.0024564]
[1726030094883,0.032,56424.0,56422.0,0.0021494]
[1726030095126,0.27237245,56424.0,56422.0,0.0021494]
[1726030095349,0.29537245,56424.0,56422.0,0.0021494]
[1726030095600,0.29537245,56424.0,56407.0,0.0024564]
[1726030095601,0.21423378,56419.0,56407.0,0.0024564]
[1726030095838,0.5719,56414.0,56407.0,0.0024564]
[1726030096136,0.5719,56412.0,56407.0,0.0024564]
[1726030096383,0.74784018,56412.0,56407.0,0.0024564]
[1726030098947,0.77484018,56412.0,56407.0,0.0024564]
[1726030099173,0.76184018,56412.0,56407.0,0.0024564]
[1726030099406,0.74784018,56412.0,56407.0,0.0024564]
[1726030099648,0.76084018,56412.0,56407.0,0.0024564]
[1726030099926,0.77484018,56412.0,56407.0,0.0024564]
[1726030101321,0.76184018,56412.0,56407.0,0.0024564]
[1726030101559,0.8270242,56412.0,56407.0,0.0024564]
[1726030101807,2.1336242,56412.0,56407.0,0.0024564]
[1726030102036,2.06844018,56412.0,56407.0,0.0024564]
[1726030102514,2.04344018,56412.0,56407.0,0.0024564]
[1726030102749,2.05644018,56412.0,56407.0,0.0024564]
[1726030102983,2.04744018,56412.0,56407.0,0.0024564]
[1726030103214,2.03444018,56412.0,56407.0,0.0024564]
[1726030103431,2.02044018,56412.0,56407.0,0.0024564]
[1726030104147,2.19660973,56412.0,56407.0,0.0024564]
[1726030104596,2.05444018,56412.0,56407.0,0.0024564]
[1726030104815,2.04344018,56412.0,56407.0,0.0024564]
[1726030105036,2.03444018,56412.0,56407.0,0.0024564]
[1726030105255,2.04644018,56412.0,56407.0,0.0024564]
[1726030105481,2.03244018,56412.0,56407.0,0.0024564]
[1726030105968,2.05844018,56412.0,56407.0,0.0024564]
[1726030110015,2.25666445,56412.0,56407.0,0.0024564]
[1726030110465,2.08144018,56412.0,56407.0,0.0024564]
[1726030110708,2.05844018,56412.0,56407.0,0.0024564]
[1726030111138,2.06044018,56412.0,56407.0,0.0024564]
[1726030111350,2.08344018,56412.0,56407.0,0.0024564]
[1726030112534,1.15216752,56412.0,56407.0,0.0024564]
[1726030112758,0.2894,56411.0,56407.0,0.0024564]
[1726030112973,0.092,56408.0,56407.0,0.0024564]
[1726030113226,0.092,56408.0,56399.0,0.0021494]
[1726030113227,0.092,56403.0,56399.0,0.0021494]
[1726030113466,0.90930116,56403.0,56399.0,0.0021494]
[1726030113689,1.12970116,56403.0,56399.0,0.0021494]
[1726030113907,1.25267128,56403.0,56399.0,0.0021494]
[1726030114412,0.092,56400.0,56399.0,0.0021494]
[1726030114669,0.65797418,56400.0,56399.0,0.0021494]
[1726030114911,0.65797418,56400.0,56389.0,0.08]
[1726030114912,0.092,56390.0,56389.0,0.08]
[1726030115179,0.66274018,56390.0,56389.0,0.08]
[1726030115394,0.88314018,56390.0,56389.0,0.06092558]
[1726030115842,0.84194018,56390.0,56389.0,0.06092558]
[1726030116086,0.81194018,56390.0,56389.0,0.06092558]
[1726030116340,0.80294018,56390.0,56389.0,0.06092558]
[1726030116544,0.77294018,56390.0,56389.0,0.06092558]
[1726030116989,0.20394018,56390.0,56389.0,0.06092558]
[1726030118115,0.18994018,56390.0,56389.0,0.06092558]
[1726030118340,0.17594018,56390.0,56389.0,0.06092558]
[1726030118541,0.18494018,56390.0,56389.0,0.06092558]
[1726030118814,0.18994018,56390.0,56389.0,0.06092558]
[1726030119099,0.19894018,56390.0,56389.0,0.06092558]
[1726030119311,0.17594018,56390.0,56389.0,0.06092558]
[1726030119540,0.18994018,56390.0,56389.0,0.06092558]
[1726030119777,0.19894018,56390.0,56389.0,0.06092558]
[1726030119996,0.17594018,56390.0,56389.0,0.06092558]
[1726030120700,0.3856,56403.0,56390.0,0.1941]
[1726030120934,0.31146698,56413.0,56390.0,0.1941]
[1726030120935,0.17594018,56402.0,56390.0,0.1941]
[1726030121157,0.17594018,56402.0,56394.0,0.25146698]
[1726030121388,0.17594018,56402.0,56395.0,0.4073]
[1726030121625,0.17594018,56402.0,56399.0,0.25146698]
[1726030121842,0.000817,56412.0,56400.0,0.1941]
[1726030122082,0.17594018,56411.0,56400.0,0.1941]
[1726030122312,0.17594018,56411.0,56401.0,0.1]
[1726030122561,0.17594018,56411.0,56402.0,0.25146698]
[1726030123468,0.00443207,56410.0,56401.0,0.1]
[1726030123688,0.17594018,56409.0,56401.0,0.1]
[1726030123904,0.00443209,56408.0,56401.0,0.1]
[1726030124091,0.17594018,56407.0,56401.0,0.1]
[1726030124973,0.17594018,56407.0,56400.0,0.1941]
[1726030125204,0.17594018,56407.0,56395.0,0.4073]
[1726030125491,0.17594018,56407.0,56396.0,0.1]
[1726030125492,0.00443281,56406.0,56396.0,0.1]
[1726030125716,0.17594018,56405.0,56396.0,0.1]
[1726030125952,0.17594018,56405.0,56385.0,0.03]
[1726030125953,0.41625748,56404.0,56388.0,0.1983]
[1726030126195,0.17594018,56401.0,56388.0,0.1983]
[1726030126412,0.24475011,56404.0,56381.0,0.1983]
[1726030126413,0.3768,56397.0,56381.0,0.1983]
[1726030126625,0.3768,56397.0,56380.0,0.9743]
[1726030126626,0.03,56392.0,56380.0,0.9743]
[1726030126852,0.00443401,56391.0,56380.0,0.9743]
[1726030127068,0.17594018,56390.0,56380.0,0.9743]
[1726030128919,0.18294018,56390.0,56380.0,0.9743]
[1726030129143,0.19194018,56390.0,56380.0,0.9743]
[1726030129846,0.18294018,56390.0,56380.0,0.9743]
[1726030130058,0.19194018,56390.0,56380.0,0.9743]
[1726030132314,0.17594018,56390.0,56380.0,0.9743]
[1726030132554,0.18194018,56390.0,56380.0,0.9743]
[1726030132774,0.18994018,56390.0,56380.0,0.9743]
[1726030134267,0.18994018,56390.0,56380.0,0.776]
[1726030135998,0.17594018,56390.0,56380.0,0.776]
[1726030136231,0.18994018,56390.0,56380.0,0.776]
[1726030138241,0.18194018,56390.0,56380.0,0.776]
[1726030138456,0.17594018,56390.0,56380.0,0.776]
[1726030138657,0.18294018,56390.0,56380.0,0.776]
[1726030138869,0.18694018,56390.0,56380.0,0.776]
[1726030139129,0.17594018,56390.0,56380.0,0.776]
[1726030139361,0.17594018,56390.0,56381.0,1.5]
[1726030139589,0.18994018,56390.0,56389.0,0.26085958]
[1726030139798,0.18394018,56390.0,56389.0,0.26085958]
[1726030139980,0.17594018,56390.0,56389.0,0.26085958]
[1726030140488,0.18394018,56390.0,56389.0,0.26085958]
[1726030140755,0.18994018,56390.0,56389.0,0.26085958]
[1726030141851,0.18194018,56390.0,56389.0,0.26085958]
[1726030142083,0.18094018,56390.0,56389.0,0.06255958]
[1726030142269,0.007,56390.0,56389.0,0.06255958]
[1726030142734,0.17794018,56390.0,56389.0,0.06255958]
[1726030142950,0.17994018,56390.0,56389.0,0.06455958]
[1726030143198,0.17794018,56390.0,56389.0,0.06255958]
[1726030143647,1.45054018,56390.0,56389.0,0.06255958]
[1726030144296,1.44854018,56390.0,56389.0,0.06255958]
[1726030144961,1.45254018,56390.0,56389.0,0.06255958]
[1726030145589,1.44854018,56390.0,56389.0,0.06255958]
[1726030146049,1.44854018,56390.0,56389.0,0.06355958]
[1726030146286,1.2726,56390.0,56389.0,0.06355958]
[1726030146515,0.000817,56391.0,56390.0,0.4033]
[1726030148040,0.00060356,56391.0,56390.0,0.4033]
[1726030148518,0.00060356,56391.0,56390.0,0.6016]
[1726030148751,0.00060356,56391.0,56390.0,0.7016]
[1726030149216,0.00060356,56391.0,56390.0,0.75459524]
[1726030149429,0.00060356,56391.0,56390.0,0.75559524]
[1726030149663,0.00060356,56391.0,56390.0,0.7026]
[1726030149876,0.00060356,56391.0,56390.0,0.97128361]
[1726030150093,0.00160356,56391.0,56390.0,0.78409287]
[1726030150330,0.00060356,56391.0,56390.0,0.78109287]
[1726030150564,0.00260356,56391.0,56390.0,0.78509287]
[1726030151013,0.00160356,56391.0,56390.0,2.28209287]
[1726030151222,0.00160356,56391.0,56390.0,2.47124996]
[1726030151438,0.00160356,56391.0,56390.0,2.39175709]
[1726030151670,0.00160356,56391.0,56390.0,2.43532769]
[1726030151922,0.52782518,56406.0,56392.0,0.1983]
[1726030152147,0.70376536,56406.0,56402.0,0.18283059]
[1726030152417,0.17594018,56406.0,56402.0,0.18283059]
[1726030153523,0.17594018,56406.0,56403.0,0.5748]
[1726030153720,0.17694018,56406.0,56403.0,0.5748]
[1726030153973,0.17594018,56406.0,56403.0,0.5748]
[1726030154433,1.2726,56411.0,56403.0,0.5748]
[1726030154662,0.17594018,56410.0,56407.0,0.18283059]
[1726030154891,1.2726,56411.0,56407.0,0.18283059]
[1726030155120,0.000817,56412.0,56407.0,0.18283059]
[1726030155578,0.17675718,56412.0,56411.0,0.18283059]
[1726030155785,0.17675718,56412.0,56406.0,0.776]
[1726030156032,0.17594018,56411.0,56406.0,0.776]
[1726030156462,0.17594018,56411.0,56407.0,0.003]
[1726030156674,0.17594018,56411.0,56406.0,0.776]
[1726030157098,0.17594018,56411.0,56407.0,0.001]
[1726030158275,0.57633211,56410.0,56407.0,0.001]
[1726030158505,0.57633211,56410.0,56406.0,0.779]
[1726030158506,0.17594018,56409.0,56406.0,0.779]
[1726030158748,1.44854018,56409.0,56406.0,0.779]
[1726030158978,1.44854018,56409.0,56407.0,0.001]
[1726030159201,1.44854018,56409.0,56407.0,0.004]
[1726030159440,1.44854018,56409.0,56407.0,0.003]
[1726030159890,1.44854018,56409.0,56406.0,0.776]
[1726030159891,0.00443225,56408.0,56406.0,0.776]
[1726030160111,0.17594018,56407.0,56406.0,0.776]
[1726030160321,0.17594018,56407.0,56406.0,0.778]
[1726030160985,1.44854018,56407.0,56406.0,0.778]
[1726030161232,1.44854018,56407.0,56406.0,0.002]
[1726030161233,1.47154018,56407.0,56406.0,0.002]
[1726030161479,2.05820973,56407.0,56406.0,0.002]
[1726030161697,0.002,56405.0,56389.0,0.06255958]
[1726030161926,0.17594018,56400.0,56389.0,0.83855958]
[1726030162136,0.1934,56395.0,56389.0,0.83855958]
[1726030162366,0.18037392,56394.0,56389.0,0.83855958]
[1726030162632,0.17594018,56392.0,56389.0,0.83855958]
[1726030162860,0.17594018,56390.0,56389.0,0.06255958]
[1726030163131,0.88546066,56390.0,56389.0,0.06255958]
[1726030163350,0.74784018,56390.0,56389.0,0.06255958]
[1726030163586,0.77084018,56390.0,56389.0,0.06255958]
[1726030165708,0.77784018,56390.0,56389.0,0.06255958]
[1726030165921,0.77084018,56390.0,56389.0,0.06255958]
[1726030166321,0.78884018,56390.0,56389.0,0.06255958]
[1726030167757,2.06144018,56390.0,56389.0,0.06255958]
[1726030168216,2.23760973,56390.0,56389.0,0.06255958]
[1726030168641,2.23960973,56390.0,56389.0,0.06255958]
[1726030169100,2.32960973,56390.0,56389.0,0.06255958]
[1726030169314,2.42960973,56390.0,56389.0,0.06255958]
[1726030170228,2.19144018,56390.0,56389.0,0.06255958]
[1726030170467,2.19344018,56390.0,56389.0,0.06255958]
[1726030170673,2.19225718,56390.0,56389.0,0.06255958]
[1726030171164,0.19475718,56390.0,56389.0,0.06255958]
[1726030174703,0.17675718,56390.0,56389.0,0.06255958]
[1726030175165,0.18275718,56390.0,56389.0,0.06255958]
[1726030175600,0.17675718,56390.0,56389.0,0.06255958]
[1726030176020,0.17975718,56390.0,56389.0,0.06255958]
[1726030176490,0.17675718,56390.0,56389.0,0.06255958]
[1726030177993,0.17975718,56390.0,56389.0,0.06255958]
[1726030178464,0.17675718,56390.0,56389.0,0.06255958]
[1726030178906,0.17975718,56390.0,56389.0,0.06255958]
[1726030179341,0.17675718,56390.0,56389.0,0.06255958]
[1726030179797,0.17875718,56390.0,56389.0,0.06355958]
[1726030180537,0.002817,56390.0,56389.0,0.06355958]
[1726030180777,0.002817,56390.0,56389.0,0.84539017]
[1726030181244,0.002817,56390.0,56389.0,0.94539017]
[1726030181956,0.000817,56390.0,56389.0,0.94539017]
[1726030182412,0.001817,56390.0,56389.0,0.94739017]
[1726030182870,0.000817,56390.0,56389.0,0.94539017]
[1726030183097,0.001817,56390.0,56389.0,0.94839017]
[1726030183970,0.001817,56390.0,56384.0,0.05298512]
[1726030184210,0.000817,56390.0,56389.0,0.18283059]
[1726030184421,0.20675718,56390.0,56389.0,0.18283059]
[1726030184635,0.03,56389.0,56385.0,0.18283059]
[1726030185524,0.09,56389.0,56381.0,0.18283059]
[1726030185753,0.03,56387.0,56381.0,0.18283059]
[1726030186171,0.03,56387.0,56385.0,0.003]
[1726030186817,0.17594018,56386.0,56385.0,0.003]
[1726030187033,0.26594018,56386.0,56385.0,0.003]
[1726030187270,2.10144018,56386.0,56385.0,0.003]
[1726030187753,0.09,56379.0,56378.0,0.776]
[1726030188000,0.26594018,56379.0,56378.0,0.776]
[1726030188662,0.82884018,56379.0,56378.0,0.776]
[1726030189106,0.82884018,56379.0,56378.0,0.778]
[1726030189578,0.82884018,56379.0,56378.0,0.002]
[1726030189814,0.82984018,56379.0,56378.0,0.002]
[1726030190051,0.06,56377.0,56376.0,0.0046113]
[1726030190312,0.26594018,56377.0,56376.0,0.0046113]
[1726030190773,1.54297499,56377.0,56376.0,0.0046113]
[1726030191496,1.54397499,56377.0,56376.0,0.0046113]
[1726030192456,1.54397499,56377.0,56376.0,0.0066113]
[1726030193185,1.53954018,56377.0,56376.0,0.0066113]
[1726030193417,1.53954018,56377.0,56376.0,0.0082453]
[1726030197213,1.56254018,56377.0,56376.0,0.0082453]
[1726030197454,1.94514018,56377.0,56376.0,0.0082453]
[1726030197922,2.12130973,56377.0,56376.0,0.0082453]
[1726030198159,2.12030973,56377.0,56376.0,0.0082453]
[1726030198567,1.94614018,56377.0,56376.0,0.0062453]
[1726030198798,1.94714018,56377.0,56376.0,0.0062453]
[1726030199028,1.95114018,56377.0,56376.0,0.0062453]
[1726030199262,1.95014018,56377.0,56376.0,0.0062453]
[1726030199523,2.12644018,56377.0,56376.0,0.0062453]
[1726030199724,2.31660973,56377.0,56376.0,0.0062453]
[1726030200405,2.44660973,56377.0,56376.0,0.0062453]
[1726030201410,2.11544018,56377.0,56376.0,0.0062453]
[1726030202783,2.13844018,56377.0,56376.0,0.0062453]
[1726030204184,2.11544018,56377.0,56376.0,0.0062453]
[1726030204656,2.11744018,56377.0,56376.0,0.0062453]
[1726030204893,2.43414018,56377.0,56376.0,0.0062453]
[1726030205132,2.61030973,56377.0,56376.0,0.0062453]
[1726030205359,0.8716,56372.0,56371.0,0.0001]
[1726030205579,0.09,56355.0,56354.0,0.0062433]
[1726030205835,1.53513864,56355.0,56354.0,0.0062433]
[1726030206093,2.0942525,56355.0,56354.0,0.0062433]
[1726030206324,2.0942525,56355.0,56350.0,0.08406767]
[1726030206325,1.05443059,56351.0,56350.0,0.08406767]
[1726030206562,0.82884018,56351.0,56350.0,0.08406767]
[1726030206784,0.85184018,56351.0,56350.0,0.08406767]
[1726030207251,1.03000973,56351.0,56350.0,0.08406767]
[1726030207500,0.95184018,56351.0,56350.0,0.06170901]
[1726030207718,0.98184018,56351.0,56350.0,0.06236681]
[1726030208381,0.95184018,56351.0,56350.0,0.06236681]
[1726030208680,0.86484018,56351.0,56350.0,0.06236681]
[1726030208889,0.85184018,56351.0,56350.0,0.06236681]
[1726030209313,0.87384018,56351.0,56350.0,0.06236681]
[1726030210006,2.13503864,56351.0,56350.0,0.06236681]
[1726030210679,1.91573864,56351.0,56350.0,0.06236681]
[1726030210926,1.29719846,56351.0,56350.0,0.66276681]
[1726030211163,1.29719846,56351.0,56350.0,2.16276681]
[1726030211164,0.028,56351.0,56350.0,2.16276681]
[1726030211378,0.028,56351.0,56350.0,2.26276681]
[1726030212038,0.014,56351.0,56350.0,2.26276681]
[1726030212280,1.26919846,56363.0,56352.0,0.1906]
[1726030212513,0.25362127,56387.0,56350.0,1.91398808]
[1726030212514,0.09,56367.0,56359.0,0.25162127]
[1726030212738,0.03,56365.0,56360.0,0.6004]
[1726030212978,0.03,56371.0,56365.0,0.25162127]
[1726030213196,0.03,56371.0,56366.0,1.4918]
[1726030213197,0.20594018,56371.0,56366.0,1.4918]
[1726030213447,0.03,56375.0,56370.0,0.25162127]
[1726030213694,0.03,56375.0,56371.0,0.23802808]
[1726030213917,0.0023189,56384.0,56371.0,0.23802808]
[1726030213918,0.03,56383.0,56372.0,0.1997]
[1726030214138,0.50349508,56392.0,56373.0,0.002]
[1726030214350,0.17594018,56391.0,56380.0,0.25162127]
[1726030214560,0.17594018,56391.0,56380.0,1.02762127]
[1726030215516,0.17894018,56391.0,56380.0,1.02762127]
[1726030215972,0.17594018,56391.0,56380.0,1.02762127]
[1726030216195,0.17594018,56391.0,56390.0,0.25162127]
[1726030216196,0.003,56391.0,56390.0,0.25162127]
[1726030216907,0.003,56391.0,56390.0,0.48962127]
[1726030217125,0.003,56391.0,56390.0,0.78932127]
[1726030217609,0.52782518,56408.0,56390.0,0.78932127]
[1726030217845,0.52782518,56407.0,56397.0,0.45132127]
[1726030218079,0.52782518,56407.0,56397.0,1.22732127]
[1726030218321,0.0059431,56411.0,56397.0,2.82732127]
[1726030219287,0.0039767,56398.0,56397.0,2.82832127]
[1726030220444,0.0029767,56398.0,56397.0,2.82732127]
[1726030220679,0.0039767,56398.0,56397.0,2.82832127]
[1726030220897,0.0049767,56398.0,56397.0,2.82932127]
[1726030221133,0.0049767,56398.0,56397.0,2.82832127]
[1726030221379,0.0049767,56398.0,56397.0,1.32832127]
[1726030221596,0.0049767,56398.0,56397.0,1.32932127]
[1726030221597,0.0059767,56398.0,56397.0,1.32932127]
[1726030222266,0.0059767,56398.0,56397.0,0.878]
[1726030223450,0.0049767,56398.0,56397.0,0.877]
[1726030224155,0.0029767,56398.0,56397.0,0.876]
[1726030224384,0.0029767,56398.0,56397.0,0.877]
[1726030224615,0.0029767,56398.0,56397.0,0.876]
[1726030224844,0.0039767,56398.0,56397.0,0.877]
[1726030225073,0.0049767,56398.0,56397.0,0.878]
[1726030225284,0.0039767,56398.0,56397.0,0.876]
[1726030225730,0.0049767,56398.0,56397.0,0.877]
[1726030225948,0.0039767,56398.0,56397.0,0.876]
[1726030226858,0.0049767,56398.0,56397.0,0.877]
[1726030227528,0.0038767,56398.0,56397.0,0.877]
[1726030227756,0.0038767,56398.0,56397.0,0.878]
[1726030227757,0.0048767,56398.0,56397.0,0.878]
[1726030230042,0.0048767,56398.0,56397.0,0.778]
[1726030230555,0.0056937,56398.0,56397.0,0.778]
[1726030230799,0.0036937,56398.0,56397.0,0.777]
[1726030231044,0.0059431,56411.0,56397.0,0.777]
[1726030231045,0.0059431,56411.0,56402.0,0.002]
[1726030231265,0.0059431,56411.0,56403.0,0.1904]
[1726030231496,0.0059431,56411.0,56410.0,0.48962127]
[1726030231715,0.0059431,56411.0,56410.0,1.12762127]
[1726030232180,0.0059431,56411.0,56410.0,2.62762127]
[1726030232672,0.0069431,56411.0,56410.0,2.62762127]
[1726030233413,0.0069431,56411.0,56410.0,2.81802127]
[1726030234057,0.0079431,56411.0,56410.0,2.82702127]
[1726030234464,0.0079431,56411.0,56410.0,3.03296145]
[1726030234473,0.4771,56421.0,56411.0,0.002]
[1726030234691,0.4771,56421.0,56420.0,0.25162127]
[1726030234903,0.0029767,56425.0,56420.0,0.54202127]
[1726030235116,0.0029767,56425.0,56421.0,0.1]
[1726030235340,0.0029767,56425.0,56422.0,0.776]
[1726030236512,0.0029767,56425.0,56423.0,0.1]
[1726030237450,0.0029767,56425.0,56424.0,0.238]
[1726030237691,0.0039767,56425.0,56424.0,0.238]
[1726030237935,0.0039767,56425.0,56424.0,0.338]
[1726030238211,0.0029767,56425.0,56424.0,1.838]
[1726030238450,0.0039767,56425.0,56424.0,1.838]
[1726030238690,0.0029767,56425.0,56424.0,1.838]
[1726030238950,0.0021494,56433.0,56424.0,1.96634018]
[1726030239202,0.7913,56444.0,56424.0,1.96634018]
[1726030239203,0.4771,56450.0,56439.0,0.002]
[1726030239485,0.792117,56455.0,56446.0,0.25162127]
[1726030239486,0.0014445,56447.0,56446.0,0.25162127]
[1726030239715,0.0014445,56447.0,56446.0,0.35162127]
[1726030239973,0.0014445,56447.0,56446.0,1.85162127]
[1726030240215,0.0014445,56447.0,56446.0,2.04202127]
[1726030241179,0.0024445,56447.0,56446.0,2.05602127]
[1726030241425,0.000817,56455.0,56449.0,0.03]
[1726030241656,0.000817,56455.0,56454.0,0.25162127]
[1726030241873,0.477918,56464.0,56454.0,0.25162127]
[1726030241874,0.000818,56464.0,56454.0,1.30356145]
[1726030242117,0.000818,56464.0,56455.0,0.27594018]
[1726030242375,0.000818,56464.0,56462.0,0.25162127]
[1726030242602,0.000818,56464.0,56462.0,1.85162127]
[1726030244130,0.000818,56464.0,56454.0,0.776]
[1726030244131,0.269418,56463.0,56454.0,0.776]
[1726030244348,0.270418,56463.0,56462.0,0.007]
[1726030244589,0.44635818,56463.0,56462.0,0.007]
[1726030245012,0.44635818,56463.0,56462.0,0.015]
[1726030245235,0.44535818,56463.0,56462.0,0.008]
[1726030245463,0.44535818,56463.0,56455.0,0.1]
[1726030245685,0.17594018,56462.0,56455.0,0.1]
[1726030245980,0.269418,56463.0,56455.0,0.1]
[1726030246191,0.000818,56463.0,56461.0,0.25162127]
[1726030246423,0.000818,56463.0,56462.0,0.1]
[1726030247089,0.001818,56463.0,56462.0,0.107]
[1726030247552,0.000818,56463.0,56462.0,0.1]
[1726030248032,0.001818,56463.0,56462.0,0.116]
[1726030248271,0.001818,56463.0,56462.0,0.107]
[1726030248500,0.000818,56463.0,56462.0,0.109]
[1726030248741,0.001818,56463.0,56462.0,0.107]
[1726030249230,0.001818,56463.0,56462.0,0.007]
[1726030250200,0.001818,56463.0,56462.0,0.016]
[1726030250678,0.35735818,56463.0,56454.0,0.776]
[1726030250909,0.44454018,56462.0,56454.0,0.776]
[1726030251876,0.2686,56462.0,56455.0,0.35162127]
[1726030252132,0.2686,56462.0,56455.0,0.1]
[1726030253287,0.2686,56462.0,56455.0,0.35162127]
[1726030253825,0.000818,56463.0,56455.0,0.35162127]
[1726030253826,0.000818,56463.0,56461.0,0.25162127]
[1726030254037,0.000818,56463.0,56462.0,0.1]
[1726030254938,0.2686,56462.0,56456.0,0.001632]
[1726030255168,0.2686,56460.0,56456.0,0.001632]
[1726030255383,0.2686,56458.0,56456.0,0.001632]
[1726030255635,0.17594018,56457.0,56456.0,0.001632]
[1726030258279,0.17594018,56457.0,56456.0,0.003632]
[1726030258708,0.17594018,56457.0,56456.0,0.001632]
[1726030259132,0.18294018,56457.0,56456.0,0.002632]
[1726030260985,0.36354018,56457.0,56456.0,0.002632]
[1726030261246,0.63214018,56457.0,56456.0,0.002632]
[1726030261459,0.007,56457.0,56456.0,0.25425327]
[1726030261706,0.007,56457.0,56456.0,0.35425327]
[1726030261962,0.007,56457.0,56456.0,1.85425327]
[1726030262202,0.007,56457.0,56456.0,1.602632]
[1726030262414,0.000818,56463.0,56456.0,1.602632]
[1726030262415,0.000818,56463.0,56456.0,0.101632]
[1726030262641,0.17675818,56463.0,56457.0,0.1]
[1726030263338,0.000818,56463.0,56461.0,0.25162127]
[1726030263985,0.000818,56463.0,56461.0,1.75162127]
[1726030264854,0.000818,56463.0,56461.0,1.5]
[1726030265099,0.000818,56463.0,56461.0,1.503]
[1726030265316,0.000818,56463.0,56461.0,0.25462127]
[1726030265530,0.000818,56463.0,56461.0,0.25162127]
[1726030265745,0.000818,56463.0,56461.0,0.25562127]
[1726030265990,0.000818,56463.0,56461.0,0.25962127]
[1726030266209,0.000818,56463.0,56461.0,0.008]
[1726030266899,0.000818,56463.0,56461.0,0.004]
[1726030267343,0.17594018,56462.0,56461.0,0.011]
[1726030267584,0.17594018,56462.0,56461.0,0.004]
[1726030267808,0.17594018,56462.0,56456.0,0.001632]
[1726030268253,0.17594018,56462.0,56461.0,0.003]
[1726030268703,0.17594018,56462.0,56456.0,0.001632]
[1726030269141,0.17694018,56462.0,56456.0,0.25325327]
[1726030269390,0.17694018,56462.0,56457.0,0.1]
[1726030269603,0.000818,56463.0,56457.0,0.1]
[1726030270687,0.000818,56463.0,56461.0,0.28162127]
[1726030271157,0.000818,56463.0,56461.0,0.03]
[1726030271382,0.17594018,56462.0,56457.0,0.001]
[1726030271592,0.4492,56461.0,56456.0,0.001632]
[1726030271808,0.44454018,56460.0,56456.0,0.001632]
[1726030272023,0.44454018,56457.0,56456.0,0.001632]
[1726030272245,0.62514018,56457.0,56456.0,0.001632]
[1726030272474,0.64814018,56457.0,56456.0,0.001632]
[1726030272957,0.65014018,56457.0,56456.0,0.001632]
[1726030273173,0.002,56452.0,56430.0,0.25162127]
[1726030273404,0.0616,56447.0,56425.0,1.02762127]
[1726030273622,1.27362799,56451.0,56425.0,1.02762127]
[1726030273623,0.2257,56442.0,56425.0,1.02762127]